fUST/lending_fUST_20250317
["ID","MTS","AMOUNT","RATE_DAILY","PERIOD"]
[356256860,1742145040700,-500.0,8.493e-05,2]
[356256862,1742145040709,-500.0,8.493e-05,2]
[356256864,1742145040719,-635.91,8.493e-05,2]
[356256866,1742145040729,-500.0,8.493e-05,2]
[356256867,1742145040739,-500.0,8.493e-05,2]
[356256869,1742145040748,-500.0,8.493e-05,2]
[356256870,1742145040758,-500.0,8.493e-05,2]
[356256872,1742145040768,-500.0,8.493e-05,2]
[356256873,1742145040778,-500.0,8.493e-05,2]
[356256874,1742145040788,-500.0,8.493e-05,2]
[356256875,1742145040797,-500.0,8.493e-05,2]
[356256876,1742145040806,-500.0,8.493e-05,2]
[356256877,1742145040815,-641.08,8.493e-05,2]
[356256878,1742145040824,-1327.32,8.493e-05,2]
[356256879,1742145040833,-500.0,8.493e-05,2]
[356256880,1742145040842,-3620.8,8.493e-05,2]
[356256881,1742145040851,-640.36,8.493e-05,2]
[356256882,1742145040861,-530.62,8.493e-05,2]
[356256883,1742145040871,-342.3,8.493e-05,2]
[356256884,1742145040880,-500.0,8.493e-05,2]
[356256885,1742145040890,-629.6,8.493e-05,2]
[356256886,1742145040899,-500.0,8.493e-05,2]
[356256887,1742145040908,-500.0,8.493e-05,2]
[356256888,1742145040918,-500.0,8.493e-05,2]
[356256889,1742145040927,-500.0,8.493e-05,2]
[356256890,1742145040936,-500.0,8.493e-05,2]
[356256891,1742145040946,-500.0,8.493e-05,2]
[356256892,1742145040955,-500.0,8.493e-05,2]
[356256893,1742145040965,-500.0,8.493e-05,2]
[356256894,1742145040974,-189.35435377,8.493e-05,2]
[356256895,1742145040984,-500.0,8.493e-05,2]
[356256896,1742145040993,-500.0,8.493e-05,2]
[356256897,1742145041003,-500.0,8.493e-05,2]
[356256898,1742145041012,-500.0,8.493e-05,2]
[356256899,1742145041022,-500.0,8.493e-05,2]
[356256900,1742145041031,-3012.83,8.493e-05,2]
[356256901,1742145041040,-222.8,8.493e-05,2]
[356256902,1742145041049,-500.0,8.493e-05,2]
[356256903,1742145041059,-215.16,8.493e-05,2]
[356256904,1742145041067,-500.0,8.493e-05,2]
[356256905,1742145041076,-720.68,8.493e-05,2]
[356256906,1742145041086,-500.0,8.493e-05,2]
[356256907,1742145041095,-500.0,8.493e-05,2]
[356256908,1742145041104,-712.69,8.493e-05,2]
[356256909,1742145041114,-500.0,8.493e-05,2]
[356256910,1742145041122,-539.4,8.493e-05,2]
[356256911,1742145041132,-500.0,8.493e-05,2]
[356256912,1742145041143,-612.06,8.493e-05,2]
[356256913,1742145041153,-500.0,8.493e-05,2]
[356256914,1742145041163,-2039.69,8.493e-05,2]
[356256915,1742145041172,-500.0,8.493e-05,2]
[356256916,1742145041182,-2546.7,8.493e-05,2]
[356256917,1742145041191,-500.0,8.493e-05,2]
[356256918,1742145041201,-500.0,8.493e-05,2]
[356256919,1742145041210,-500.0,8.493e-05,2]
[356256920,1742145041219,-6824.62,8.493e-05,2]
[356256921,1742145041228,-500.0,8.493e-05,2]
[356256922,1742145041238,-596.3,8.493e-05,2]
[356256923,1742145041247,-500.0,8.493e-05,2]
[356256924,1742145041256,-500.0,8.493e-05,2]
[356256925,1742145041267,-500.0,8.493e-05,2]
[356256926,1742145041276,-500.0,8.493e-05,2]
[356256927,1742145041286,-886.07,8.493e-05,2]
[356256928,1742145041296,-358.84,8.493e-05,2]
[356256929,1742145041308,-1022.66,8.493e-05,2]
[356256930,1742145041319,-500.0,8.493e-05,2]
[356256931,1742145041331,-4470.94,8.493e-05,2]
[356256932,1742145041344,-56063.43468675,8.493e-05,2]
[356256933,1742145041364,-10190.11185196,8.493e-05,2]
[356256934,1742145041950,-5010.34091849,8.493e-05,2]
[356256935,1742145041964,-7767.37130658,8.493e-05,2]
[356256951,1742145044333,-217.14,8.219e-05,2]
[356256952,1742145044344,-73.99283178,8.442e-05,2]
[356256953,1742145044358,-347.89016822,8.442e-05,2]
[356256954,1742145044370,-875.22048693,8.493e-05,2]
[356257029,1742145046444,-500.0,8.219e-05,2]
[356257031,1742145046457,-1282.35589145,8.493e-05,2]
[356257043,1742145046550,-1437.0,8.493e-05,2]
[356257047,1742145046562,-1020.404016,8.493e-05,2]
[356257092,1742145226896,4189.580306,0.00014,30]
[356257093,1742145343793,50000.0,0.00014,30]
[356257106,1742146039161,-500.0,8.191e-05,2]
[356257107,1742146039186,-500.0,8.191e-05,2]
[356257108,1742146039211,-454.9511556,8.191e-05,2]
[356257109,1742146039239,-215.34089961,8.191e-05,2]
[356257110,1742146039266,-188.0,8.191e-05,2]
[356257111,1742146039289,-387.56450971,8.192e-05,2]
[356257115,1742146126867,1836.82785605,8e-05,2]
[356257157,1742146232637,-443.59342351,8.192e-05,2]
[356257158,1742146232691,-1100.0,8.192e-05,2]
[356257159,1742146232703,-960.68538111,8.192e-05,2]
[356257232,1742146240938,-54814.43256729,8.192e-05,2]
[356257281,1742146246614,-1015.7348,8.192e-05,2]
[356257282,1742146246626,-665.29999995,8.192e-05,2]
[356257283,1742146246642,-837.56,8.192e-05,2]
[356257284,1742146293582,24900.0,7.508e-05,2]
[356257288,1742147239129,-1893.91502432,8.1e-05,2]
[356257289,1742147244114,-713.51995781,8.1e-05,2]
[356257290,1742147244136,-580.81319652,8.191e-05,2]
[356257291,1742147244157,-300.0,8.191e-05,2]
[356257292,1742147244178,-221.63117606,8.192e-05,2]
[356257293,1742147372920,24900.0,7.397e-05,2]
[356257330,1742147431845,-10529.0365325,8.192e-05,2]
[356257337,1742147431901,-30625.53879443,8.192e-05,2]
[356257340,1742147431912,-3314.29308636,8.192e-05,2]
[356257555,1742147437686,-14691.30750807,8.192e-05,2]
[356257556,1742147437741,-863.23739488,8.192e-05,2]
[356257557,1742147437753,-2467.58984189,8.192e-05,2]
[356257558,1742147437765,-511.09596172,8.192e-05,2]
[356257559,1742147437777,-594.98404894,8.192e-05,2]
[356257560,1742147437789,-2226.83756651,8.192e-05,2]
[356257561,1742147437807,-6360.54714689,8.192e-05,2]
[356257562,1742147437819,-500.0,8.192e-05,2]
[356257570,1742147440032,-1226.04132791,8.192e-05,2]
[356257571,1742147440047,-6113.27802973,8.192e-05,2]
[356257595,1742147442765,-5264.71726476,8.192e-05,2]
[356257714,1742147445759,-310.89942862,8.192e-05,2]
[356257715,1742147445779,-4474.87245798,8.192e-05,2]
[356257716,1742147445790,-1237.73041995,8.192e-05,2]
[356257717,1742147445802,-836.5,8.192e-05,2]
[356257719,1742148102811,352.0,0.00015,120]
[356257720,1742148119489,5000.0,8.001e-05,2]
[356257721,1742148135628,5000.0,8.001e-05,2]
[356257724,1742148426136,24900.0,7.397e-05,2]
[356257725,1742148446095,-189.39150243,8.092e-05,2]
[356257726,1742148452094,-3098.84849766,8.092e-05,2]
[356257727,1742148452116,-300.0,8.191e-05,2]
[356257728,1742148452136,-20513.33831565,8.192e-05,2]
[356257759,1742148632005,-1829.34367484,8.192e-05,2]
[356257760,1742148632059,-2959.63894143,8.192e-05,2]
[356257761,1742148632113,-5207.4251617,8.192e-05,2]
[356257823,1742148637872,-625.97698097,8.192e-05,2]
[356257838,1742148638013,-1651.91341699,8.192e-05,2]
[356257878,1742148640049,-1169.05268913,8.192e-05,2]
[356257884,1742148640102,-10524.82512808,8.192e-05,2]
[356257891,1742148640156,-796.76260512,8.192e-05,2]
[356258200,1742148643012,-853.44283946,8.192e-05,2]
[356258207,1742148643067,-4785.01412416,8.192e-05,2]
[356258209,1742148643077,-196.08690704,8.214e-05,2]
[356258211,1742148643087,-500.0,8.218e-05,2]
[356258213,1742148643097,-518.46580892,8.218e-05,2]
[356258215,1742148643106,-6640.48315988,8.219e-05,2]
[356258496,1742148646075,-628.45000009,8.219e-05,2]
[356258497,1742148646087,-1123.32659317,8.219e-05,2]
[356258498,1742148646128,-849.29714535,8.219e-05,2]
[356258499,1742148646138,-501.98964201,8.219e-05,2]
[356258500,1742148646147,-500.0,8.219e-05,2]
[356258501,1742148646157,-499.0,8.219e-05,2]
[356258502,1742148646167,-500.0,8.219e-05,2]
[356258503,1742148646176,-462.65552984,8.219e-05,2]
[356258504,1742148646199,-37.34447016,8.219e-05,2]
[356258505,1742148646209,-500.0,8.219e-05,2]
[356258506,1742148646219,-398.58776307,8.219e-05,2]
[356258508,1742148646228,-500.0,8.219e-05,2]
[356258510,1742148646241,-500.0,8.219e-05,2]
[356258512,1742148646251,-500.0,8.219e-05,2]
[356258514,1742148646260,-223.85776677,8.219e-05,2]
[356259521,1742148776382,42869.4403702,7.219e-05,2]
[356259522,1742148940535,957.3009997,7.269e-05,2]
[356259523,1742149266209,6629.0,0.00014,30]
[356259524,1742149446350,1996.36137907,8.001e-05,2]
[356259525,1742149454240,2063.81787791,8.001e-05,2]
[356259534,1742149638125,-2040.21005867,8.118e-05,2]
[356259535,1742149652102,-12273.71603663,8.118e-05,2]
[356259541,1742149746794,24900.0,7.397e-05,2]
[356259574,1742149832097,-300.0,8.117e-05,2]
[356259575,1742149832106,-2.0,8.118e-05,2]
[356259576,1742149832118,-11037.69819931,8.118e-05,2]
[356259577,1742149832129,-500.0,8.118e-05,2]
[356259578,1742149832140,-259.22146273,8.118e-05,2]
[356259579,1742149832149,-500.0,8.118e-05,2]
[356259580,1742149832159,-500.0,8.118e-05,2]
[356259581,1742149832168,-500.0,8.118e-05,2]
[356259582,1742149832177,-500.0,8.118e-05,2]
[356259583,1742149832187,-500.0,8.118e-05,2]
[356259584,1742149832196,-500.0,8.118e-05,2]
[356259585,1742149832205,-500.0,8.118e-05,2]
[356259586,1742149832215,-500.0,8.118e-05,2]
[356259587,1742149832224,-500.0,8.118e-05,2]
[356259588,1742149832233,-500.0,8.118e-05,2]
[356259589,1742149832242,-500.0,8.118e-05,2]
[356259590,1742149832251,-500.0,8.118e-05,2]
[356259591,1742149832261,-500.0,8.118e-05,2]
[356259592,1742149832271,-370.07365002,8.118e-05,2]
[356259593,1742149832280,-500.0,8.118e-05,2]
[356259594,1742149832289,-500.0,8.118e-05,2]
[356259595,1742149832298,-500.0,8.118e-05,2]
[356259597,1742149832308,-215.34089961,8.118e-05,2]
[356259599,1742149832317,-500.0,8.118e-05,2]
[356259600,1742149832326,-500.0,8.118e-05,2]
[356259602,1742149832337,-318.70640714,8.118e-05,2]
[356259603,1742149832346,-171.25053021,8.118e-05,2]
[356259604,1742149832355,-500.0,8.118e-05,2]
[356259605,1742149832365,-500.0,8.118e-05,2]
[356259606,1742149832375,-500.0,8.118e-05,2]
[356259607,1742149832384,-500.0,8.118e-05,2]
[356259608,1742149832394,-500.0,8.118e-05,2]
[356259609,1742149832403,-500.0,8.118e-05,2]
[356259610,1742149832413,-286.42685099,8.118e-05,2]
[356259611,1742149832422,-52833.02402239,8.119e-05,2]
[356259612,1742149832434,-3827.00317772,8.119e-05,2]
[356259613,1742149832446,-8863.07109052,8.119e-05,2]
[356259614,1742149832457,-1962.025,8.119e-05,2]
[356259615,1742149832468,-1517.49171399,8.119e-05,2]
[356259724,1742149840341,-213.114996,8.119e-05,2]
[356259828,1742149843103,-5670.28941469,8.119e-05,2]
[356259829,1742149843113,-500.0,8.193e-05,2]
[356259830,1742149843124,-508.41721183,8.193e-05,2]
[356259831,1742149843133,-500.0,8.193e-05,2]
[356259832,1742149843143,-500.0,8.193e-05,2]
[356259833,1742149843153,-500.0,8.193e-05,2]
[356259834,1742149843162,-500.0,8.193e-05,2]
[356259835,1742149843172,-500.0,8.193e-05,2]
[356259836,1742149843181,-502.85666168,8.193e-05,2]
[356259837,1742149843191,-500.0,8.193e-05,2]
[356259838,1742149843201,-500.0,8.193e-05,2]
[356259839,1742149843211,-500.0,8.193e-05,2]
[356259840,1742149843220,-500.0,8.193e-05,2]
[356259841,1742149843230,-500.0,8.193e-05,2]
[356259842,1742149843240,-500.0,8.193e-05,2]
[356259843,1742149843250,-514.63765863,8.193e-05,2]
[356259844,1742149843260,-260.02179677,8.193e-05,2]
[356259845,1742149843270,-260.02397494,8.193e-05,2]
[356259846,1742149843279,-599.47428027,8.193e-05,2]
[356259847,1742149843289,-500.24236722,8.193e-05,2]
[356259848,1742149843299,-501.71725763,8.193e-05,2]
[356259849,1742149843309,-500.0,8.193e-05,2]
[356259850,1742149843318,-401.11429547,8.193e-05,2]
[356259851,1742149843328,-500.07585931,8.193e-05,2]
[356259852,1742149843338,-420.67002841,8.193e-05,2]
[356259853,1742149843348,-500.0,8.193e-05,2]
[356259854,1742149843358,-500.0,8.193e-05,2]
[356259855,1742149843368,-500.0,8.193e-05,2]
[356259856,1742149843377,-578.43575748,8.193e-05,2]
[356259857,1742149843388,-504.08259823,8.193e-05,2]
[356259858,1742149843397,-500.0,8.193e-05,2]
[356259859,1742149843406,-500.0,8.193e-05,2]
[356259860,1742149843416,-500.0,8.193e-05,2]
[356259861,1742149843425,-526.18089562,8.193e-05,2]
[356259862,1742149843435,-500.0,8.193e-05,2]
[356259863,1742149843445,-500.42400921,8.193e-05,2]
[356259864,1742149843455,-500.0,8.193e-05,2]
[356259865,1742149843465,-500.0,8.193e-05,2]
[356259866,1742149843475,-289.02149541,8.193e-05,2]
[356259867,1742149843484,-289.0214954,8.2e-05,2]
[356259868,1742149843494,-289.0214954,8.206e-05,2]
[356259869,1742149843504,-289.0214954,8.213e-05,2]
[356259870,1742149843513,-151.00000001,8.214e-05,2]
[356259871,1742149843523,-600.0,8.214e-05,2]
[356259872,1742149843533,-1014.96013156,8.218e-05,2]
[356259873,1742149843542,-500.0,8.219e-05,2]
[356259874,1742149843552,-500.0,8.219e-05,2]
[356259875,1742149843562,-385.0972421,8.219e-05,2]
[356259876,1742149843572,-502.8641707,8.219e-05,2]
[356259877,1742149843582,-512.75958135,8.219e-05,2]
[356259878,1742149843591,-500.0,8.219e-05,2]
[356259879,1742149843602,-502.45479096,8.219e-05,2]
[356259880,1742149843612,-501.48378724,8.219e-05,2]
[356259881,1742149843622,-503.46486739,8.219e-05,2]
[356259882,1742149843632,-505.00311798,8.219e-05,2]
[356259883,1742149843642,-519.48720037,8.219e-05,2]
[356259884,1742149843651,-520.15078468,8.219e-05,2]
[356259885,1742149843661,-519.78602573,8.219e-05,2]
[356259886,1742149843670,-500.0,8.219e-05,2]
[356259887,1742149843680,-519.58990664,8.219e-05,2]
[356259888,1742149843690,-519.70910029,8.219e-05,2]
[356259889,1742149843700,-535.44591174,8.219e-05,2]
[356259890,1742149843709,-507.11935493,8.219e-05,2]
[356259891,1742149843719,-502.8312301,8.219e-05,2]
[356259892,1742149843728,-500.0,8.219e-05,2]
[356259893,1742149843739,-502.73462613,8.219e-05,2]
[356259894,1742149843752,-501.98338329,8.219e-05,2]
[356259895,1742149843763,-503.09107984,8.219e-05,2]
[356259896,1742149843773,-506.7973694,8.219e-05,2]
[356259897,1742149843783,-503.54662791,8.219e-05,2]
[356259898,1742149843793,-500.0,8.219e-05,2]
[356259899,1742149843803,-307.60389464,8.219e-05,2]
[356259900,1742149843814,-500.0,8.219e-05,2]
[356259901,1742149843827,-500.0,8.219e-05,2]
[356259902,1742149843837,-500.8075972,8.219e-05,2]
[356259903,1742149843847,-500.0,8.219e-05,2]
[356259904,1742149843858,-500.0,8.219e-05,2]
[356259905,1742149843867,-500.0,8.219e-05,2]
[356259906,1742149843877,-500.0,8.219e-05,2]
[356259907,1742149843887,-589.00133785,8.219e-05,2]
[356259908,1742149843897,-461.8982895,8.219e-05,2]
[356259909,1742149843907,-500.0,8.219e-05,2]
[356259910,1742149843917,-500.0,8.219e-05,2]
[356259911,1742149843927,-510.73074638,8.219e-05,2]
[356259912,1742149843938,-500.0,8.219e-05,2]
[356259913,1742149843947,-500.0,8.219e-05,2]
[356259914,1742149843957,-500.0,8.219e-05,2]
[356259915,1742149844202,-500.0,8.219e-05,2]
[356259916,1742149844213,-501.95841041,8.219e-05,2]
[356259917,1742149844223,-507.53234178,8.219e-05,2]
[356259918,1742149844232,-511.44538381,8.219e-05,2]
[356259919,1742149844242,-500.0,8.219e-05,2]
[356259920,1742149844251,-500.0,8.219e-05,2]
[356259921,1742149844261,-500.0,8.219e-05,2]
[356259922,1742149844270,-500.0,8.219e-05,2]
[356259923,1742149844280,-500.0,8.219e-05,2]
[356259924,1742149844289,-48.2281254,8.219e-05,2]
[356259932,1742149846062,-451.7718746,8.219e-05,2]
[356259934,1742149846072,-500.0,8.219e-05,2]
[356259935,1742149846081,-500.0,8.219e-05,2]
[356259936,1742149846091,-500.0,8.219e-05,2]
[356259937,1742149846102,-589.07045565,8.219e-05,2]
[356259938,1742149846112,-500.0,8.219e-05,2]
[356259939,1742149846121,-500.0,8.219e-05,2]
[356259940,1742149846131,-500.0,8.219e-05,2]
[356259941,1742149846141,-500.0,8.219e-05,2]
[356259942,1742149846151,-512.49068824,8.219e-05,2]
[356259943,1742149846161,-500.0,8.219e-05,2]
[356259944,1742149846171,-500.0,8.219e-05,2]
[356259945,1742149846180,-500.0,8.219e-05,2]
[356259946,1742149846189,-500.0,8.219e-05,2]
[356259947,1742149846198,-500.0,8.219e-05,2]
[356259948,1742149846208,-500.0,8.219e-05,2]
[356259949,1742149846217,-500.0,8.219e-05,2]
[356259950,1742149846226,-539.5252015,8.219e-05,2]
[356259952,1742149846236,-500.0,8.219e-05,2]
[356259954,1742149846245,-500.0,8.219e-05,2]
[356259956,1742149846254,-614.24858193,8.219e-05,2]
[356259958,1742149846264,-500.0,8.219e-05,2]
[356259960,1742149846273,-344.01281358,8.219e-05,2]
[356259962,1742149846282,-500.0,8.219e-05,2]
[356259963,1742149846292,-507.37644692,8.219e-05,2]
[356259964,1742149846301,-500.0,8.219e-05,2]
[356259965,1742149846310,-500.0,8.219e-05,2]
[356259966,1742149846319,-500.0,8.219e-05,2]
[356259967,1742149846329,-500.0,8.219e-05,2]
[356259968,1742149846338,-500.0,8.219e-05,2]
[356259969,1742149846347,-500.0,8.219e-05,2]
[356259970,1742149846357,-159.02498004,8.219e-05,2]
[356259971,1742149846366,-500.0,8.219e-05,2]
[356259972,1742149846376,-500.0,8.219e-05,2]
[356259973,1742149846385,-151.0,8.219e-05,2]
[356259974,1742149846394,-181.99504,8.219e-05,2]
[356259975,1742149846403,-500.0,8.219e-05,2]
[356259976,1742149846419,-500.0,8.219e-05,2]
[356259977,1742149846428,-500.0,8.219e-05,2]
[356259978,1742149846438,-500.0,8.219e-05,2]
[356259979,1742149846447,-500.0,8.219e-05,2]
[356259980,1742149846456,-500.0,8.219e-05,2]
[356259981,1742149846466,-500.0,8.219e-05,2]
[356259982,1742149846475,-500.0,8.219e-05,2]
[356259983,1742149846485,-500.83363842,8.219e-05,2]
[356259984,1742149846494,-500.0,8.219e-05,2]
[356259985,1742149846503,-500.0,8.219e-05,2]
[356259986,1742149846513,-500.0,8.219e-05,2]
[356259987,1742149846522,-500.0,8.219e-05,2]
[356259988,1742149846532,-500.0,8.219e-05,2]
[356259990,1742149846541,-500.0,8.219e-05,2]
[356259991,1742149846550,-500.0,8.219e-05,2]
[356259992,1742149846559,-500.0,8.219e-05,2]
[356259993,1742149846568,-500.0,8.219e-05,2]
[356259994,1742149846577,-500.0,8.219e-05,2]
[356259995,1742149846586,-500.0,8.219e-05,2]
[356259996,1742149846595,-225.86235389,8.219e-05,2]
[356259997,1742149846605,-266.1584889,8.219e-05,2]
[356259998,1742149846614,-500.0,8.219e-05,2]
[356259999,1742149846623,-500.0,8.219e-05,2]
[356260000,1742149846632,-500.0,8.219e-05,2]
[356260001,1742149846642,-500.0,8.219e-05,2]
[356260002,1742149846651,-512.13,8.219e-05,2]
[356260003,1742149846660,-500.0,8.219e-05,2]
[356260004,1742149846670,-500.0,8.219e-05,2]
[356260005,1742149846679,-500.0,8.219e-05,2]
[356260006,1742149846688,-500.0,8.219e-05,2]
[356260007,1742149846698,-500.0,8.219e-05,2]
[356260008,1742149846707,-500.0,8.219e-05,2]
[356260009,1742149846716,-500.0,8.219e-05,2]
[356260010,1742149846726,-591.02857737,8.219e-05,2]
[356260011,1742149846735,-503.99869706,8.219e-05,2]
[356260012,1742149846746,-500.0,8.219e-05,2]
[356260013,1742149846758,-500.0,8.219e-05,2]
[356260014,1742149846767,-500.0,8.219e-05,2]
[356260015,1742149846777,-431.84571248,8.219e-05,2]
[356260016,1742149846786,-500.0,8.219e-05,2]
[356260017,1742149846796,-527.02804716,8.219e-05,2]
[356260018,1742149846805,-500.0,8.219e-05,2]
[356260019,1742149846815,-500.0,8.219e-05,2]
[356260020,1742149846824,-500.0,8.219e-05,2]
[356260021,1742149846833,-500.0,8.219e-05,2]
[356260022,1742149846846,-500.0,8.219e-05,2]
[356260023,1742149846855,-344.89909288,8.219e-05,2]
[356260024,1742149846864,-500.0,8.219e-05,2]
[356260025,1742149846874,-500.0,8.219e-05,2]
[356260026,1742149846883,-395.55146878,8.219e-05,2]
[356260027,1742149846893,-500.0,8.219e-05,2]
[356260028,1742149846902,-500.0,8.219e-05,2]
[356260029,1742149846911,-500.0,8.219e-05,2]
[356260030,1742149846921,-500.0,8.219e-05,2]
[356260031,1742149846930,-500.0,8.219e-05,2]
[356260032,1742149846940,-500.0,8.219e-05,2]
[356260033,1742149846949,-500.0,8.219e-05,2]
[356260034,1742149846959,-500.0,8.219e-05,2]
[356260035,1742149846968,-533.15385492,8.219e-05,2]
[356260036,1742149846978,-500.0,8.219e-05,2]
[356260037,1742149846987,-500.0,8.219e-05,2]
[356260038,1742149846997,-500.0,8.219e-05,2]
[356260039,1742149847006,-500.0,8.219e-05,2]
[356260040,1742149847015,-500.0,8.219e-05,2]
[356260041,1742149847025,-500.0,8.219e-05,2]
[356260042,1742149847034,-467.2554633,8.219e-05,2]
[356260043,1742149847044,-500.0,8.219e-05,2]
[356260044,1742149847054,-500.0,8.219e-05,2]
[356260045,1742149847063,-500.0,8.219e-05,2]
[356260046,1742149847073,-500.0,8.219e-05,2]
[356260047,1742149847082,-500.0,8.219e-05,2]
[356260048,1742149847092,-500.0,8.219e-05,2]
[356260049,1742149847102,-500.0,8.219e-05,2]
[356260050,1742149847111,-500.0,8.219e-05,2]
[356260051,1742149847121,-500.0,8.219e-05,2]
[356260052,1742149847131,-500.0,8.219e-05,2]
[356260053,1742149847140,-500.0,8.219e-05,2]
[356260054,1742149847150,-500.0,8.219e-05,2]
[356260055,1742149847160,-520.66534353,8.219e-05,2]
[356260056,1742149847170,-500.0,8.219e-05,2]
[356260057,1742149847181,-500.0,8.219e-05,2]
[356260058,1742149847191,-505.71432072,8.219e-05,2]
[356260059,1742149847200,-531.09065085,8.219e-05,2]
[356260060,1742149847210,-500.0,8.219e-05,2]
[356260061,1742149847219,-500.0,8.219e-05,2]
[356260062,1742149847229,-500.0,8.219e-05,2]
[356260063,1742149847239,-500.0,8.219e-05,2]
[356260064,1742149847248,-500.0,8.219e-05,2]
[356260065,1742149847258,-500.0,8.219e-05,2]
[356260066,1742149847267,-508.13480804,8.219e-05,2]
[356260067,1742149847276,-500.0,8.219e-05,2]
[356260068,1742149847286,-500.0,8.219e-05,2]
[356260069,1742149847296,-589.33565572,8.219e-05,2]
[356260070,1742149847306,-971.7,8.219e-05,2]
[356260071,1742149847316,-500.0,8.219e-05,2]
[356260072,1742149847325,-500.89800163,8.219e-05,2]
[356260073,1742149847335,-500.0,8.219e-05,2]
[356260074,1742149847345,-500.0,8.219e-05,2]
[356260075,1742149847355,-507.02459435,8.219e-05,2]
[356260076,1742149847365,-500.0,8.219e-05,2]
[356260077,1742149847375,-501.07778001,8.219e-05,2]
[356260078,1742149847385,-518.95583319,8.219e-05,2]
[356260079,1742149847394,-500.0,8.219e-05,2]
[356260080,1742149847404,-500.0,8.219e-05,2]
[356260081,1742149847414,-501.28780785,8.219e-05,2]
[356260082,1742149847425,-500.0,8.219e-05,2]
[356260083,1742149847435,-500.0,8.219e-05,2]
[356260084,1742149847447,-500.0,8.219e-05,2]
[356260085,1742149847456,-500.0,8.219e-05,2]
[356260086,1742149847466,-500.0,8.219e-05,2]
[356260087,1742149847476,-500.0,8.219e-05,2]
[356260088,1742149847485,-506.51659327,8.219e-05,2]
[356260089,1742149847495,-201.38881834,8.219e-05,2]
[356260090,1742149847504,-500.0,8.219e-05,2]
[356260091,1742149847515,-500.0,8.219e-05,2]
[356260092,1742149847525,-500.0,8.219e-05,2]
[356260093,1742149847534,-500.0,8.219e-05,2]
[356260094,1742149847544,-500.0,8.219e-05,2]
[356260095,1742149847554,-500.0,8.219e-05,2]
[356260096,1742149847564,-500.0,8.219e-05,2]
[356260097,1742149847574,-500.0,8.219e-05,2]
[356260098,1742149847583,-159.29558943,8.219e-05,2]
[356260099,1742149847593,-513.14625044,8.219e-05,2]
[356260100,1742149847604,-500.0,8.219e-05,2]
[356260101,1742149847613,-587.289789,8.219e-05,2]
[356260102,1742149847622,-500.0,8.219e-05,2]
[356260103,1742149847631,-500.0,8.219e-05,2]
[356260104,1742149847641,-507.0255921,8.219e-05,2]
[356260105,1742149847651,-500.0,8.219e-05,2]
[356260106,1742149847660,-500.0,8.219e-05,2]
[356260107,1742149847670,-500.0,8.219e-05,2]
[356260108,1742149847679,-500.0,8.219e-05,2]
[356260109,1742149847689,-500.0,8.219e-05,2]
[356260110,1742149847699,-593.45734067,8.219e-05,2]
[356260111,1742149847708,-500.0,8.219e-05,2]
[356260112,1742149847719,-500.0,8.219e-05,2]
[356260113,1742149847729,-500.0,8.219e-05,2]
[356260114,1742149847739,-500.0,8.219e-05,2]
[356260115,1742149847750,-500.0,8.219e-05,2]
[356260116,1742149847760,-500.0,8.219e-05,2]
[356260117,1742149847770,-500.0,8.219e-05,2]
[356260118,1742149847780,-500.0,8.219e-05,2]
[356260119,1742149847790,-500.0,8.219e-05,2]
[356260120,1742149847800,-500.0,8.219e-05,2]
[356260121,1742149847810,-500.0,8.219e-05,2]
[356260122,1742149847820,-1360.92,8.219e-05,2]
[356260123,1742149847830,-500.0,8.219e-05,2]
[356260124,1742149847840,-577.83293517,8.219e-05,2]
[356260125,1742149847850,-500.0,8.219e-05,2]
[356260126,1742149847860,-3507.15,8.219e-05,2]
[356260127,1742149847869,-500.0,8.219e-05,2]
[356260128,1742149847879,-612.21252568,8.219e-05,2]
[356260129,1742149847889,-501.67660358,8.219e-05,2]
[356260130,1742149847898,-500.0,8.219e-05,2]
[356260131,1742149847908,-500.0,8.219e-05,2]
[356260132,1742149847917,-500.0,8.219e-05,2]
[356260133,1742149847927,-500.0,8.219e-05,2]
[356260134,1742149847937,-500.0,8.219e-05,2]
[356260135,1742149847946,-500.0,8.219e-05,2]
[356260136,1742149847956,-500.0,8.219e-05,2]
[356260137,1742149847965,-500.0,8.219e-05,2]